bitfinex/quotes_BTCUSD_20251102
["timestamp","ask_amount","ask_price","bid_price","bid_amount"]
[1762100765864,0.40677084,110210.0,110200.0,0.1616]
[1762100766113,0.44768629,110210.0,110200.0,0.1616]
[1762100766357,0.86243009,110210.0,110200.0,0.1616]
[1762100766591,1.04690182,110210.0,110200.0,0.1616]
[1762100766811,1.04390182,110210.0,110200.0,0.1616]
[1762100767032,1.04690182,110210.0,110200.0,0.1716]
[1762100767260,0.9572491,110210.0,110200.0,0.1716]
[1762100767497,0.86743009,110210.0,110200.0,0.1716]
[1762100767737,0.40377084,110210.0,110200.0,0.2062]
[1762100767959,0.40477084,110210.0,110200.0,0.1686]
[1762100768179,0.40177084,110210.0,110200.0,0.1686]
[1762100768404,0.40177084,110210.0,110200.0,0.2132]
[1762100768688,0.40077084,110210.0,110200.0,0.3876882]
[1762100768917,0.40677084,110210.0,110200.0,0.3976882]
[1762100769144,0.03137652,110210.0,110200.0,0.4668282]
[1762100769375,0.03237652,110210.0,110200.0,0.4668282]
[1762100770740,0.03237652,110210.0,110200.0,0.3530882]
[1762100771188,0.03237652,110210.0,110200.0,1.48047684]
[1762100771648,0.03237652,110210.0,110200.0,1.10908252]
[1762100772081,0.02937652,110210.0,110200.0,1.09908252]
[1762100772559,0.02937652,110210.0,110200.0,1.10108252]
[1762100772993,0.02937652,110210.0,110200.0,1.19090153]
[1762100773454,0.02937652,110210.0,110200.0,0.77490721]
[1762100773687,0.02937652,110210.0,110200.0,0.77990721]
[1762100774145,0.02937652,110210.0,110200.0,0.82450721]
[1762100774374,0.02937652,110210.0,110200.0,0.7714982]
[1762100774616,0.02937652,110210.0,110200.0,0.8406382]
[1762100775111,0.02937652,110210.0,110200.0,0.7714982]
[1762100775324,0.02937652,110210.0,110200.0,0.8374882]
[1762100775544,0.02937652,110210.0,110200.0,0.7714982]
[1762100775768,0.02937652,110210.0,110200.0,0.6900882]
[1762100776891,0.02937652,110210.0,110200.0,0.6850882]
[1762100777141,0.02937652,110210.0,110200.0,0.6860882]
[1762100778057,0.02937652,110210.0,110200.0,0.6840882]
[1762100778302,0.02937652,110210.0,110200.0,0.6850882]
[1762100778781,0.02937652,110210.0,110200.0,0.7258482]
[1762100780040,0.02937652,110210.0,110200.0,0.84971721]
[1762100780527,0.02937652,110210.0,110200.0,0.91570721]
[1762100782716,0.02937652,110210.0,110200.0,0.57841]
[1762100782717,0.40077084,110210.0,110200.0,0.57841]
[1762100782963,0.40077084,110210.0,110200.0,0.1636]
[1762100783856,0.40077084,110210.0,110200.0,0.1626]
[1762100784326,0.40277084,110210.0,110200.0,0.1616]
[1762100784539,0.4029594,110210.0,110200.0,0.1616]
[1762100784753,0.4039594,110210.0,110200.0,0.1616]
[1762100787090,0.49377841,110210.0,110200.0,0.1616]
[1762100787305,0.4039594,110210.0,110200.0,0.1616]
[1762100788791,0.4039594,110210.0,110200.0,0.3430882]
[1762100789485,0.4039594,110210.0,110200.0,0.1616]
[1762100792585,0.4039594,110210.0,110200.0,0.3430882]
[1762100793199,0.03237652,110210.0,110200.0,0.1616]
[1762100793410,0.4039594,110210.0,110200.0,0.1616]
[1762100793592,0.4039594,110210.0,110200.0,0.3430882]
[1762100794743,0.03237652,110210.0,110200.0,0.53310726]
[1762100795432,0.03237652,110210.0,110200.0,0.47117726]
[1762100796088,0.03237652,110210.0,110200.0,0.4156782]
[1762100796772,0.03237652,110210.0,110200.0,0.4776082]
[1762100800841,0.02937652,110210.0,110200.0,0.52660555]
[1762100801258,0.02937652,110210.0,110200.0,0.4846082]
[1762100802346,0.02937652,110210.0,110200.0,0.53360555]
[1762100802995,0.02937652,110210.0,110200.0,0.4846082]
[1762100803863,0.02776781,110210.0,110200.0,0.55915899]
[1762100804335,0.02645713,110210.0,110200.0,0.55915899]
[1762100804851,0.02645713,110210.0,110200.0,0.93074187]
[1762100805092,0.02645713,110210.0,110200.0,3.97973922]
[1762100805318,0.02645713,110210.0,110200.0,4.0159215]
[1762100805753,0.02645713,110210.0,110200.0,4.3559215]
[1762100807664,0.02645713,110210.0,110200.0,3.98433862]
[1762100808099,0.02645713,110210.0,110200.0,0.94815634]
[1762100813391,0.02645713,110210.0,110200.0,0.76666814]
[1762100813811,0.02645713,110210.0,110200.0,0.87360555]
[1762100814016,0.39804001,110210.0,110200.0,0.87360555]
[1762100814225,0.02645713,110210.0,110200.0,0.69211735]
[1762100814434,0.39804001,110210.0,110200.0,0.21759735]
[1762100814685,0.39804001,110210.0,110200.0,0.1686]
[1762100815520,0.39804001,110210.0,110200.0,0.20812]
[1762100815760,0.39804001,110210.0,110200.0,0.4218182]
[1762100815761,0.02645713,110210.0,110200.0,0.4218182]
[1762100816007,0.02645713,110210.0,110200.0,0.53328434]
[1762100816239,0.02645713,110210.0,110200.0,0.53428434]
[1762100816451,0.02645713,110210.0,110200.0,0.53228434]
[1762100816868,0.02645713,110210.0,110200.0,0.53328434]
[1762100817094,0.02645713,110210.0,110200.0,0.35179614]
[1762100817342,0.02645713,110210.0,110200.0,0.28855614]
[1762100817558,0.02645713,110210.0,110200.0,0.47004434]
[1762100817781,0.02645713,110210.0,110200.0,0.35179614]
[1762100818010,0.39804001,110210.0,110200.0,0.19581]
[1762100818459,0.39804001,110210.0,110200.0,0.23533]
[1762100818963,0.39804001,110210.0,110200.0,0.1636]
[1762100819190,0.39804001,110210.0,110200.0,0.4168182]
[1762100819416,0.39804001,110210.0,110200.0,0.23533]
[1762100819648,0.39804001,110210.0,110200.0,0.1636]
[1762100820327,0.39804001,110210.0,110200.0,0.20301014]
[1762100821030,0.39804001,110210.0,110200.0,0.1636]
[1762100825721,0.02645713,110210.0,110200.0,0.4478482]
[1762100825924,0.02645713,110210.0,110200.0,0.3846082]
[1762100826129,0.02645713,110210.0,110200.0,0.4478482]
[1762100829079,0.02645713,110210.0,110200.0,0.49684555]
[1762100829496,0.02645713,110210.0,110200.0,0.58666456]
[1762100829926,0.02645713,110210.0,110200.0,0.95824744]
[1762100830400,0.02645713,110210.0,110200.0,3.95824744]
[1762100831950,0.02645713,110210.0,110200.0,3.98470457]
[1762100832159,0.02645713,110210.0,110200.0,3.61312169]
[1762100834684,0.02645713,110210.0,110200.0,3.98470457]
[1762100835752,0.02645713,110210.0,110200.0,3.61312169]
[1762100840006,0.02645713,110210.0,110200.0,0.61312169]
[1762100841168,0.02645713,110210.0,110200.0,0.64423169]
[1762100846426,0.02645713,110210.0,110200.0,1.01566842]
[1762100846939,0.02645713,110210.0,110200.0,0.64423169]
[1762100847203,0.02645713,110210.0,110200.0,1.01566842]
[1762100851190,0.02645713,110210.0,110200.0,1.42328743]
[1762100852050,0.02645713,110210.0,110200.0,0.68041397]
[1762100852286,0.02645713,110210.0,110200.0,0.55441268]
[1762100854546,0.02645713,110210.0,110200.0,0.92584941]
[1762100854788,0.02645713,110210.0,110200.0,0.55441268]
[1762100857530,0.39789386,110210.0,110200.0,0.37292448]
[1762100857757,0.39789386,110210.0,110200.0,0.52795555]
[1762100858659,0.02645713,110210.0,110200.0,0.52795555]
[1762100859316,0.02645713,110210.0,110200.0,0.42519555]
[1762100859549,0.02645713,110210.0,110200.0,0.46213555]
[1762100859776,0.02645713,110210.0,110200.0,0.61080456]
[1762100860945,0.02645713,110210.0,110200.0,0.39408555]
[1762100861833,0.02645713,110210.0,110200.0,0.45955555]
[1762100862057,0.02645713,110210.0,110200.0,0.39408555]
[1762100862313,0.02645713,110210.0,110200.0,0.51840555]
[1762100862534,0.02645713,110210.0,110200.0,0.39408555]
[1762100863669,0.39789386,110210.0,110200.0,0.21259735]
[1762100864096,0.02645713,110210.0,110200.0,0.39408555]
[1762100865447,0.02645713,110210.0,110200.0,0.48390456]
[1762100866795,0.02645713,110210.0,110200.0,0.39408555]
[1762100867650,0.02645713,110210.0,110200.0,0.21259735]
[1762100867885,0.42057782,110210.0,110200.0,0.21259735]
[1762100868106,0.39789386,110210.0,110200.0,0.1636]
[1762100871628,0.57936559,110210.0,110200.0,0.1636]
[1762100871843,0.95080232,110210.0,110200.0,0.1636]
[1762100872054,0.6691846,110210.0,110200.0,0.1636]
[1762100872265,0.57936559,110210.0,110200.0,0.1636]
[1762100872716,0.95080232,110210.0,110200.0,0.1616]
[1762100872930,0.58236559,110210.0,110200.0,0.1616]
[1762100873141,0.40089386,110210.0,110200.0,0.1616]
[1762100874699,0.58236559,110210.0,110200.0,0.1616]
[1762100874909,0.40089386,110210.0,110200.0,0.1616]
[1762100879521,0.40089386,110210.0,110200.0,0.3430882]
[1762100879736,0.40089386,110210.0,110200.0,0.1616]
[1762100880201,0.40089386,110210.0,110200.0,0.3430882]
[1762100880442,0.02945713,110210.0,110200.0,0.3430882]
[1762100880886,0.40089386,110210.0,110200.0,0.3430882]
[1762100881362,0.39889386,110210.0,110200.0,0.3430882]
[1762100881581,0.02645713,110210.0,110200.0,0.3430882]
[1762100881804,0.02645713,110210.0,110200.0,1.24315067]
[1762100882028,0.02645713,110210.0,110200.0,0.92786394]
[1762100882467,0.02645713,110210.0,110200.0,0.87271394]
[1762100882914,0.02645713,110210.0,110200.0,0.80634394]
[1762100884270,0.02645713,110210.0,110200.0,0.43490721]
[1762100884479,0.02645713,110210.0,110200.0,0.3450882]
[1762100885162,0.02645713,110210.0,110200.0,0.71652493]
[1762100885855,0.02645713,110210.0,110200.0,0.4666082]
[1762100886073,0.02645713,110210.0,110200.0,0.83804493]
[1762100887014,0.02645713,110210.0,110200.0,1.20948166]
[1762100887463,0.02645713,110210.0,110200.0,1.63930067]
[1762100887955,0.02645713,110210.0,110200.0,0.92369655]
[1762100888215,0.02645713,110210.0,110200.0,1.29513328]
[1762100888649,0.02645713,110210.0,110200.0,1.66657001]
[1762100888870,0.02645713,110210.0,110200.0,1.29513328]
[1762100891959,0.02645713,110210.0,110200.0,1.70275229]
[1762100893033,0.02645713,110210.0,110200.0,1.70175229]
[1762100893450,0.02745713,110210.0,110200.0,1.70975229]
[1762100894525,0.02745713,110210.0,110200.0,1.70875229]
[1762100894989,0.02745713,110210.0,110200.0,1.71275229]
[1762100895613,0.02745713,110210.0,110200.0,1.34131556]
[1762100901799,0.02745713,110210.0,110200.0,1.28616556]
[1762100902017,0.02745713,110210.0,110200.0,1.33743556]
[1762100902246,0.02745713,110210.0,110200.0,0.96599883]
[1762100902479,0.02745713,110210.0,110200.0,1.33743556]
[1762100903374,0.02745713,110210.0,110200.0,0.96599883]
[1762100907628,0.02745713,110210.0,110200.0,1.33743556]
[1762100908028,0.02745713,110210.0,110200.0,0.78451063]
[1762100908189,0.02745713,110210.0,110200.0,0.96599883]
[1762100908602,0.02745713,110210.0,110200.0,0.92981655]
[1762100917300,0.02745713,110210.0,110200.0,0.87854655]
[1762100917514,0.3989225,110210.0,110200.0,0.87854655]
[1762100917720,0.3989225,110210.0,110200.0,0.78872754]
[1762100918182,0.02745713,110210.0,110200.0,0.78872754]
[1762100918730,0.02745713,110210.0,110200.0,0.84252754]
[1762100918933,0.02745713,110210.0,110200.0,0.90785555]
[1762100919145,0.02745713,110210.0,110200.0,0.99767456]
[1762100929646,0.02745713,110210.0,110200.0,1.40532221]
[1762100933523,0.02745713,110210.0,110200.0,1.4153222]
[1762100937070,0.02745713,110210.0,110200.0,0.99677456]
[1762100937977,0.02731987,110210.0,110200.0,0.99677456]
[1762100950411,0.02731987,110210.0,110200.0,1.36823993]
[1762100951808,0.02731987,110210.0,110200.0,1.34097059]
[1762100952438,0.02731987,110210.0,110200.0,0.96950522]
[1762100954823,0.02731987,110210.0,110200.0,1.38715286]
[1762100955029,0.02731987,110210.0,110200.0,1.4144189]
[1762100959077,0.02731987,110210.0,110200.0,1.5624189]
[1762100961062,0.02731987,110210.0,110200.0,1.55241891]
[1762100961502,0.02731987,110210.0,110200.0,1.5624189]
[1762100970454,0.02731987,110210.0,110200.0,1.56231007]
[1762100971331,0.02731987,110210.0,110200.0,1.41431007]
[1762100972608,0.02731987,110210.0,110200.0,1.78566661]
[1762100977775,0.02731987,110210.0,110200.0,1.7203386]
[1762100980959,0.02731987,110210.0,110200.0,1.80208064]
[1762100985084,0.02731987,110210.0,110200.0,1.7203386]
[1762100989283,0.02731987,110210.0,110200.0,0.97762552]
[1762100989501,0.02731987,110210.0,110200.0,1.41437236]
[1762100990270,0.02731987,110210.0,110200.0,1.03301583]
[1762101001499,0.02731987,110210.0,110200.0,1.40437237]
[1762101001712,0.02731987,110210.0,110200.0,1.03301583]
[1762101001919,0.02731987,110210.0,110200.0,1.40437237]
[1762101003942,0.02731987,110210.0,110200.0,1.03301583]
[1762101004152,0.02731987,110210.0,110200.0,1.40437237]
[1762101004762,0.02731987,110210.0,110200.0,1.03301583]
[1762101004954,0.02731987,110210.0,110200.0,1.40437237]
[1762101006529,0.02731987,110210.0,110200.0,1.40436045]
[1762101007222,0.02731987,110210.0,110200.0,1.03300391]
[1762101007439,0.02731987,110210.0,110200.0,1.40436045]
[1762101008080,0.02731987,110210.0,110200.0,1.03300391]
[1762101008503,0.02731987,110210.0,110200.0,1.40436045]
[1762101009804,0.02731987,110210.0,110200.0,1.01868391]
[1762101010026,0.02731987,110210.0,110200.0,1.36277441]
[1762101010484,0.02731987,110210.0,110200.0,0.99141787]
[1762101010695,0.02731987,110210.0,110200.0,1.36277441]
[1762101010934,0.02731987,110210.0,110200.0,0.99141787]
[1762101016239,0.39867641,110210.0,110200.0,0.95523559]
[1762101016706,0.39867641,110210.0,110200.0,0.90798559]
[1762101018089,0.39867641,110210.0,110200.0,0.85028559]
[1762101018301,0.39867641,110210.0,110200.0,0.81469721]
[1762101018746,0.39867641,110210.0,110200.0,0.7248782]
[1762101018961,0.39867641,110210.0,110200.0,0.6950882]
[1762101021323,0.77003295,110210.0,110200.0,0.1736]
[1762101021534,0.39867641,110210.0,110200.0,0.1736]
[1762101021799,0.42594845,110210.0,110200.0,0.1736]
[1762101022026,0.85495309,110210.0,110200.0,0.1736]
[1762101022241,0.85395309,110210.0,110200.0,0.1656]
[1762101022494,0.79630499,110210.0,110200.0,0.1656]
[1762101022698,0.79630499,110210.0,110200.0,0.1666]
[1762101023135,0.79630499,110210.0,110200.0,0.1616]
[1762101023351,0.97977672,110210.0,110200.0,0.1616]
[1762101024241,0.98077672,110210.0,110200.0,0.1616]
[1762101024449,1.07059573,110210.0,110200.0,0.1616]
[1762101026698,1.44195227,110210.0,110200.0,0.1616]
[1762101028555,1.44095227,110210.0,110200.0,0.1616]
[1762101028762,1.44495227,110210.0,110200.0,0.1616]
[1762101029215,1.45595227,110210.0,110200.0,0.1626]
[1762101029483,0.07059191,110210.0,110200.0,0.1626]
[1762101029699,1.01746068,110210.0,110200.0,0.1626]
[1762101029930,0.99477672,110210.0,110200.0,0.1626]
[1762101030380,0.98377672,110210.0,110200.0,0.1616]
[1762101030589,0.6066813,110210.0,110200.0,0.1616]
[1762101030813,0.6076813,110210.0,110200.0,0.1616]
[1762101031031,0.6086813,110210.0,110200.0,0.1616]
[1762101031249,0.69850031,110210.0,110200.0,0.1616]
[1762101036141,1.07011797,110210.0,110200.0,0.1616]
[1762101037040,1.06911797,110210.0,110200.0,0.1616]
[1762101037656,1.06811797,110210.0,110200.0,0.1616]
[1762101038081,1.07411797,110210.0,110200.0,0.1616]
[1762101038295,1.08511797,110210.0,110200.0,0.1626]
[1762101039387,1.12130025,110210.0,110200.0,0.1626]
[1762101039660,0.0950021,110210.0,110200.0,0.1626]
[1762101039909,0.07059191,110210.0,110200.0,0.1626]
[1762101040138,0.44220957,110210.0,110200.0,0.3440882]
[1762101040837,0.43620957,110210.0,110200.0,0.3440882]
[1762101041297,0.42520957,110210.0,110200.0,0.3440882]
[1762101041521,0.42520957,110210.0,110200.0,0.3460882]
[1762101042214,0.05359191,110210.0,110200.0,0.3460882]
[1762101042426,0.42520957,110210.0,110200.0,0.1646]
[1762101042630,0.42520957,110210.0,110200.0,0.3460882]
[1762101045776,0.05359191,110210.0,110200.0,0.3460882]
[1762101046198,0.02631987,110210.0,110200.0,0.45075935]
[1762101048119,0.02631987,110210.0,110200.0,0.49265935]
[1762101048326,0.02631987,110210.0,110200.0,0.45075935]
[1762101049880,0.02631987,110210.0,110200.0,0.3958282]
[1762101050095,0.02631987,110210.0,110200.0,0.4377282]
[1762101050301,0.02631987,110210.0,110200.0,0.3958282]
[1762101050920,0.02631987,110210.0,110200.0,0.3678082]
[1762101051126,0.02631987,110210.0,110200.0,0.3958282]
[1762101051730,0.02631987,110210.0,110200.0,0.39465272]
[1762101051963,0.02631987,110210.0,110200.0,0.36663272]
[1762101052163,0.02631987,110210.0,110200.0,0.34491272]
[1762101054920,0.39793753,110210.0,110200.0,0.34491272]
[1762101055549,0.02631987,110210.0,110200.0,0.34491272]
[1762101056439,0.02631987,110210.0,110200.0,0.16342452]
[1762101056874,0.02631987,110210.0,110200.0,0.34491272]
[1762101057294,0.39793753,110210.0,110200.0,0.16342452]
[1762101057532,0.02631987,110210.0,110200.0,0.16342452]
[1762101057732,0.39793753,110210.0,110200.0,0.16342452]
[1762101058104,0.4559169,110210.0,110200.0,0.16342452]
[1762101058293,0.02631987,110210.0,110200.0,0.16342452]
[1762101058545,0.42062149,110210.0,110200.0,0.16342452]
[1762101058731,0.39793753,110210.0,110200.0,0.16342452]
[1762101059170,0.39793753,110210.0,110200.0,0.34491272]
[1762101059607,0.39793753,110210.0,110200.0,0.16342452]
[1762101060723,0.57940926,110210.0,110200.0,0.16342452]
[1762101060911,0.02631987,110210.0,110200.0,0.34491272]
[1762101061158,0.45324715,110210.0,110200.0,0.16342452]
[1762101061375,0.63471888,110210.0,110200.0,0.16342452]
[1762101062662,0.63471888,110210.0,110200.0,0.16242452]
[1762101062879,0.45324715,110210.0,110200.0,0.16242452]
[1762101063088,0.45324715,110210.0,110200.0,0.34191272]
[1762101063302,0.39793753,110210.0,110200.0,0.34191272]
[1762101063517,0.02831987,110210.0,110200.0,0.34191272]
[1762101063725,0.39993753,110210.0,110200.0,0.34191272]
[1762101064146,0.02831987,110210.0,110200.0,0.34191272]
[1762101065050,0.02831987,110210.0,110200.0,0.39165272]
[1762101066108,0.02631987,110210.0,110200.0,0.39265272]
[1762101066554,0.02631987,110210.0,110200.0,0.39465272]
[1762101067216,0.02631987,110210.0,110200.0,0.43655272]
[1762101067437,0.02631987,110210.0,110200.0,0.39465272]
[1762101068495,0.02631987,110210.0,110200.0,0.36663272]
[1762101068748,0.39793753,110210.0,110200.0,0.34491272]
[1762101069176,0.45864437,110210.0,110200.0,0.34491272]
[1762101069392,0.45864437,110210.0,110200.0,0.16342452]
[1762101069823,0.45864437,110210.0,110200.0,0.16142452]
[1762101070037,0.6401161,110210.0,110200.0,0.16142452]
[1762101070250,0.6421161,110210.0,110200.0,0.16042452]
[1762101070451,0.6431161,110210.0,110200.0,0.16042452]
[1762101070631,0.46164437,110210.0,110200.0,0.16042452]
[1762101071018,0.67039007,110210.0,110200.0,0.16042452]
[1762101071230,0.48891834,110210.0,110200.0,0.16042452]
[1762101071430,0.48891834,110210.0,110200.0,0.34191272]
[1762101071651,0.46164437,110210.0,110200.0,0.16042452]
[1762101072848,0.6431161,110210.0,110200.0,0.16042452]
[1762101073729,0.73338103,110210.0,110200.0,0.16042452]
[1762101074562,0.6431161,110210.0,110200.0,0.16042452]
[1762101080298,0.73338103,110210.0,110200.0,0.16042452]
[1762101090848,0.67267419,110210.0,110200.0,0.16042452]
[1762101092574,1.04428755,110210.0,110200.0,0.16042452]
[1762101107614,1.06380292,110210.0,110200.0,0.16042452]
[1762101108050,1.04428755,110210.0,110200.0,0.16042452]
[1762101112939,0.77255089,110210.0,110200.0,0.16042452]
[1762101113168,0.02931987,110210.0,110200.0,0.38739272]
[1762101113397,0.02931987,110210.0,110200.0,0.45012484]
[1762101113613,0.02931987,110210.0,110200.0,0.48825484]
[1762101113826,0.02931987,110210.0,110200.0,0.42552272]
[1762101114254,0.02831987,110210.0,110200.0,0.42552272]
[1762101114473,0.02631987,110210.0,110200.0,0.42552272]
[1762101114685,0.02731987,110210.0,110200.0,0.42552272]
[1762101114895,0.02631987,110210.0,110200.0,0.42552272]
[1762101115311,0.02631987,110210.0,110200.0,0.42652272]
[1762101115740,0.02831987,110210.0,110200.0,0.45379191]
[1762101116154,0.02631987,110210.0,110200.0,0.45379191]
[1762101116591,0.02631987,110210.0,110200.0,0.45579191]
[1762101119126,0.02631987,110210.0,110200.0,0.82740742]
[1762101119342,0.02631987,110210.0,110200.0,0.54561092]
[1762101119559,0.02631987,110210.0,110200.0,0.45579191]
[1762101120129,0.02631987,110210.0,110200.0,0.79579191]
[1762101120481,0.02631987,110210.0,110200.0,1.16740742]
[1762101122618,0.02631987,110210.0,110200.0,1.53902293]
[1762101124156,0.02631987,110210.0,110200.0,1.53802293]
[1762101124356,0.02631987,110210.0,110200.0,1.54202293]
[1762101124698,0.02631987,110210.0,110200.0,1.63184194]
[1762101125517,0.02631987,110210.0,110200.0,1.62984194]
[1762101125897,0.02631987,110210.0,110200.0,1.63684194]
[1762101126343,0.02631987,110210.0,110200.0,0.89361092]
[1762101126558,0.02631987,110210.0,110200.0,1.63684194]
[1762101127201,0.02631987,110210.0,110200.0,1.26522643]
[1762101127424,0.02631987,110210.0,110200.0,1.63684194]
[1762101128490,0.02631987,110210.0,110200.0,1.68302421]
[1762101129985,1e-08,110210.0,110200.0,1.68302421]
[1762101130622,1e-08,110210.0,110200.0,4.68302421]
[1762101132185,1e-08,110210.0,110200.0,4.8410242]
[1762101133787,1e-08,110210.0,110200.0,4.91062157]
[1762101134684,1e-08,110210.0,110200.0,5.28223708]
[1762101135177,1e-08,110210.0,110200.0,4.91062157]
[1762101135577,1e-08,110210.0,110200.0,4.90362157]
[1762101135793,1e-08,110210.0,110200.0,4.89962157]
[1762101136139,0.00100001,110210.0,110200.0,4.92062157]
[1762101138018,0.00100001,110210.0,110200.0,4.17739055]
[1762101138246,0.00100001,110210.0,110200.0,4.92062157]
[1762101138477,0.00100001,110210.0,110200.0,4.17739055]
[1762101138703,0.00100001,110210.0,110200.0,4.54900606]
[1762101139159,0.00100001,110210.0,110200.0,4.92062157]
[1762101140137,0.00100001,110210.0,110200.0,4.91062158]
[1762101140365,0.00100001,110210.0,110200.0,4.92062157]
[1762101142479,0.00100001,110210.0,110200.0,4.98599995]
[1762101143149,0.00100001,110210.0,110200.0,4.61438444]
[1762101143381,0.00100001,110210.0,110200.0,4.54900606]
[1762101143672,0.00100001,110210.0,110200.0,4.0877932]
[1762101143906,0.37261552,110210.0,110200.0,1.05161092]
[1762101144144,0.00100001,110210.0,110200.0,1.05161092]
[1762101144600,0.00100001,110210.0,110200.0,1.03761092]
[1762101144816,0.00100001,110210.0,110200.0,1.03061092]
[1762101144817,1e-08,110210.0,110200.0,1.03061092]
[1762101146333,1e-08,110210.0,110200.0,1.40222643]
[1762101149664,1e-08,110210.0,110200.0,1.25422643]
[1762101151881,1e-08,110210.0,110200.0,1.31960481]
[1762101152094,1e-08,110210.0,110200.0,1.25422643]
[1762101152309,1e-08,110210.0,110200.0,1.31960481]
[1762101152539,1e-08,110210.0,110200.0,1.31934302]
[1762101152978,1e-08,110210.0,110200.0,1.32334302]
[1762101153189,1e-08,110210.0,110200.0,1.32534302]
[1762101153825,1e-08,110210.0,110200.0,1.37152529]
[1762101155536,1e-08,110210.0,110200.0,1.51952529]
[1762101157865,1e-08,110210.0,110200.0,1.58848921]
[1762101158579,1e-08,110210.0,110200.0,4.58848921]
[1762101159539,1e-08,110210.0,110200.0,4.53311082]
[1762101159771,1e-08,110210.0,110200.0,4.61085286]
[1762101160000,1e-08,110210.0,110200.0,4.52711082]
[1762101160226,1e-08,110210.0,110200.0,4.61575473]
[1762101160444,1e-08,110210.0,110200.0,4.61875473]
[1762101161324,1e-08,110210.0,110200.0,4.61175473]
[1762101161536,1e-08,110210.0,110200.0,4.60875473]
[1762101161780,1e-08,110210.0,110200.0,4.62075473]
[1762101163594,1e-08,110210.0,110200.0,4.24940101]
[1762101163815,1e-08,110210.0,110200.0,4.62075473]
[1762101164888,1e-08,110210.0,110200.0,4.60575474]
[1762101165313,1e-08,110210.0,110200.0,4.61575473]
[1762101169258,1e-08,110210.0,110200.0,4.60575474]
[1762101169479,1e-08,110210.0,110200.0,4.61575473]
[1762101169942,0.0004,110220.0,110210.0,0.57765399]
[1762101170176,0.00044843,110220.0,110210.0,1.2079322]
[1762101170402,0.0004,110230.0,110210.0,1.2079322]
[1762101170403,0.0004,110230.0,110220.0,0.55763755]
[1762101170671,0.0004,110230.0,110220.0,1.08503188]
[1762101171350,0.0004,110230.0,110220.0,1.11229099]
[1762101172025,0.0004,110230.0,110220.0,0.75207206]
[1762101172297,0.0004,110230.0,110220.0,1.21324479]
[1762101172523,0.0004,110230.0,110220.0,1.21424479]
[1762101181748,0.0004,110230.0,110220.0,1.58559851]
[1762101182223,0.00084136,110230.0,110220.0,1.58559851]
[1762101183209,0.00084136,110230.0,110220.0,1.51934789]
[1762101183379,0.00084136,110230.0,110220.0,1.58260902]
[1762101183587,0.00084136,110230.0,110220.0,1.58660902]
[1762101183782,0.00084136,110230.0,110220.0,1.59360902]
[1762101184243,0.00084136,110230.0,110220.0,1.15699417]
[1762101184580,0.00084136,110230.0,110220.0,1.22226507]
[1762101185356,0.00084136,110230.0,110220.0,1.15699417]
[1762101186623,0.00084136,110230.0,110220.0,0.85093183]
[1762101186810,0.00084136,110230.0,110220.0,0.79561477]
[1762101186811,0.37219508,110230.0,110220.0,0.79561477]
[1762101187307,0.37219508,110230.0,110220.0,0.73032339]
[1762101187528,0.37219508,110230.0,110220.0,0.72332339]
[1762101187734,0.37219508,110230.0,110220.0,0.63350438]
[1762101187934,0.37519508,110230.0,110220.0,0.62950438]
[1762101188350,0.37619508,110230.0,110220.0,0.62950438]
[1762101188760,0.004,110230.0,110220.0,0.62950438]
[1762101189731,0.37535372,110230.0,110220.0,0.62950438]
[1762101190126,0.37535372,110230.0,110220.0,0.71906713]
[1762101190656,0.004,110230.0,110220.0,0.71906713]
[1762101191168,0.37535372,110230.0,110220.0,0.71906713]
[1762101191547,0.37535372,110230.0,110220.0,0.69180802]
[1762101192832,0.37535372,110230.0,110220.0,0.65483802]
[1762101193053,0.37535372,110230.0,110220.0,0.61101802]
[1762101193357,0.55679252,110230.0,110210.0,0.01936]
[1762101193628,0.55679252,110230.0,110200.0,0.27615399]
[1762101193629,0.55280908,110220.0,110200.0,0.27615399]
[1762101193829,0.37135372,110210.0,110200.0,0.31317242]
[1762101193996,0.37135372,110210.0,110200.0,0.22629663]
[1762101194399,0.37135372,110210.0,110200.0,0.56629663]
[1762101194609,0.37135372,110210.0,110200.0,0.65611564]
[1762101196328,0.37135372,110210.0,110200.0,0.69040564]
[1762101196502,0.001,110210.0,110200.0,0.69040564]
[1762101197095,0.002,110210.0,110200.0,0.69040564]
[1762101197338,0.37335372,110210.0,110200.0,0.69040564]
[1762101201443,0.37335372,110210.0,110200.0,0.65611564]
[1762101201669,0.002,110210.0,110200.0,0.65611564]
[1762101201908,0.40062227,110210.0,110200.0,0.65611564]
[1762101202088,0.40062227,110210.0,110200.0,0.69040564]
[1762101202315,0.37335372,110210.0,110200.0,0.69040564]
[1762101202469,0.002,110210.0,110200.0,0.69040564]
[1762101206325,0.37335372,110210.0,110200.0,0.69040564]
[1762101207528,0.37335372,110210.0,110200.0,0.65611564]
[1762101207968,0.37335372,110210.0,110200.0,0.56629663]
[1762101208703,0.40062127,110210.0,110200.0,0.54183663]
[1762101208927,0.40062127,110210.0,110200.0,0.59853663]
[1762101212399,0.40074606,110210.0,110200.0,0.59853663]
[1762101212810,0.37347851,110210.0,110200.0,0.59853663]
[1762101213447,0.37347851,110210.0,110200.0,0.68835564]
[1762101218164,0.37347851,110210.0,110200.0,0.65466564]
[1762101218371,0.37347851,110210.0,110200.0,0.56484663]
[1762101218583,0.40074708,110210.0,110200.0,0.56484663]
[1762101219228,0.40074708,110210.0,110200.0,0.59853663]
[1762101224783,0.40074708,110210.0,110200.0,0.56484663]
[1762101224989,0.40074708,110210.0,110200.0,0.59988663]
[1762101231243,0.02919427,110210.0,110200.0,0.59988663]
[1762101231563,0.40067278,110210.0,110200.0,0.63165564]
[1762101231743,0.40067278,110210.0,110200.0,0.61135564]
[1762101232002,0.40067278,110210.0,110200.0,0.63480564]
[1762101232218,0.40067278,110210.0,110200.0,0.65290564]
[1762101232884,0.40067278,110210.0,110200.0,0.68794564]
[1762101237570,0.40067278,110210.0,110200.0,0.65290564]
[1762101237787,0.40067278,110210.0,110200.0,0.68794564]
[1762101242383,0.02919427,110210.0,110200.0,0.68794564]
[1762101242596,0.40067278,110210.0,110200.0,0.68794564]
[1762101243087,0.40067278,110210.0,110200.0,0.56308663]
[1762101243294,0.95362302,110210.0,110200.0,0.34004843]
[1762101243498,0.95362302,110210.0,110200.0,4.843e-05]
[1762101243928,1.32510153,110210.0,110200.0,4.843e-05]
[1762101244865,1.66410153,110210.0,110200.0,4.843e-05]
[1762101245091,1.77342895,110210.0,110200.0,4.843e-05]
[1762101245282,1.77450325,110210.0,110200.0,4.843e-05]
[1762101245487,1.75699484,110210.0,110200.0,4.843e-05]
[1762101245914,1.76399484,110210.0,110200.0,4.843e-05]
[1762101246127,1.75999484,110210.0,110200.0,4.843e-05]
[1762101246355,1.75990503,110210.0,110200.0,4.843e-05]
[1762101246824,1.77390503,110210.0,110200.0,0.00104843]
[1762101248356,1.68408602,110210.0,110200.0,0.00104843]
[1762101251666,1.65690726,110210.0,110200.0,0.00104843]
[1762101253373,1.65690726,110210.0,110150.0,0.34]